{"text_format":"1","workbook":"xlsx","n_sheets":2,"sheets":["Instruktioner och konfiguration","Sep12"],"not_rendered":{"charts":0,"images":0,"macros":1,"external_links":0,"defined_names":13,"comments":0,"pivot_tables":0},"unopened":[],"bounds":{"document_bytes":16777216,"sheet_cells":100000,"rows_first":2000,"rows_last":500,"rows_between":2000,"halvings":0,"cell_chars":16384,"cell_head_chars":4096},"cells_cut":0,"cells_raw":0,"read":"whole","date_system":"1900"}

{"sheet":"Instruktioner och konfiguration","index":0,"n_rows":23,"n_cols":9,"rows_kept":23,"cut":false,"hidden":false,"merged":[[11,7,11,8],[4,7,4,8],[6,7,6,8],[8,7,8,8],[10,7,10,8],[3,2,3,4],[5,2,5,4],[7,2,7,4],[9,2,9,4],[3,7,3,8],[5,7,5,8],[7,7,7,8],[9,7,9,8]]}
[]
[null,"Instruktioner och konfiguration"]
[]
[null,1,"I tabellen Lektioner nedan skriver du in namnen på de lektioner du vill ha med i schemat.",null,null,null,5,"Skriv ett startdatum för schemat i cell A5."]
[]
[null,2,"I tabellen Aktiviteter, även den nedan, ändrar du exempelaktiviteterna efter dina behov. ",null,null,null,6,"På rad 4 kan du lägga till lektioner i schemat med hjälp av listrutan. "]
[]
[null,3,"I cell I14 anger du hur många rader du vill använda för läxaktiviteter varje dag.",null,null,null,7,"Under varje lektion lägger du till dina uppgifter i kolumnen Uppgifter ."]
[]
[null,4,"På ett schemablad, som Sept 12, går du igenom steg 5–9.",null,null,null,8,"Uppskatta hur många timmar du behöver totalt för varje uppgift i kolumnen för tid, som är markerad med en klockikon."]
[]
[null,null,null,null,null,null,9,"När du är klar med en uppgift klickar du i kolumnen Klart, som är markerad med en bockmarkering, bredvid uppgiften."]
[]
[null,null,"Lektioner",null,"Aktiviteter",null,null,"Antal rader för varje dag:",5]
[null,null,"Matematik 101",null,"Diskussion"]
[null,null,"Engelska 105",null,"Labb"]
[null,null,"Franska 103",null,"Föreläsning"]
[null,null,"Naturvetenskap 101",null,"Test"]
[null,null,"Historia 101",null,"Läsa"]
[null,null,null,null,"Reflektion"]
[null,null,null,null,"Forskningsrapport"]
[null,null,null,null,"Granskninguppgift"]
[null,null,null,null,"Studera"]

{"sheet":"Sep12","index":1,"n_rows":103,"n_cols":24,"rows_kept":103,"cut":false,"hidden":false,"merged":[]}
[]
[null,"Läxa"]
[]
[null,"Ange\nStartdatum","Totalt"," Lektion:",null,"Matematik 101"," Lektion:",null,"Engelska 105"," Lektion:",null,"Franska 103"," Lektion:",null,"Naturvetenskap 101"," Lektion:",null,null," Lektion:",null,null," Lektion:"]
[null,"2011-09-12",null,null,null,"UPPGIFT",null,null,"UPPGIFT",null,null,"UPPGIFT",null,null,"UPPGIFT",null,null,"UPPGIFT",null,null,"UPPGIFT",null,null,"UPPGIFT"]
[]
[null,{"$f":"SchemaDag","v":"2011-09-12"},{"$f":"DagligtTimmarTotalt","v":6.5},1,1.5,"Läsa",1,2,"Studera",null,1,"Läsa",1,1,"Test"]
[null,{"$f":"SchemaDag","v":""},{"$f":"DagligtTimmarTotalt","v":""},1,1,"Granskninguppgift"]
[null,{"$f":"SchemaDag","v":""},{"$f":"DagligtTimmarTotalt","v":""}]
[null,{"$f":"SchemaDag","v":""},{"$f":"DagligtTimmarTotalt","v":""}]
[null,{"$f":"SchemaDag","v":""},{"$f":"DagligtTimmarTotalt","v":""}]
[null,{"$f":"SchemaDag","v":"2011-09-13"},{"$f":"DagligtTimmarTotalt","v":0}]
[null,{"$f":"SchemaDag","v":""},{"$f":"DagligtTimmarTotalt","v":""}]
[null,{"$f":"SchemaDag","v":""},{"$f":"DagligtTimmarTotalt","v":""}]
[null,{"$f":"SchemaDag","v":""},{"$f":"DagligtTimmarTotalt","v":""}]
[null,{"$f":"SchemaDag","v":""},{"$f":"DagligtTimmarTotalt","v":""}]
[null,{"$f":"SchemaDag","v":"2011-09-14"},{"$f":"DagligtTimmarTotalt","v":0}]
[null,{"$f":"SchemaDag","v":""},{"$f":"DagligtTimmarTotalt","v":""}]
[null,{"$f":"SchemaDag","v":""},{"$f":"DagligtTimmarTotalt","v":""}]
[null,{"$f":"SchemaDag","v":""},{"$f":"DagligtTimmarTotalt","v":""}]
[null,{"$f":"SchemaDag","v":""},{"$f":"DagligtTimmarTotalt","v":""}]
[null,{"$f":"SchemaDag","v":"2011-09-15"},{"$f":"DagligtTimmarTotalt","v":0}]
[null,{"$f":"SchemaDag","v":""},{"$f":"DagligtTimmarTotalt","v":""}]
[null,{"$f":"SchemaDag","v":""},{"$f":"DagligtTimmarTotalt","v":""}]
[null,{"$f":"SchemaDag","v":""},{"$f":"DagligtTimmarTotalt","v":""}]
[null,{"$f":"SchemaDag","v":""},{"$f":"DagligtTimmarTotalt","v":""}]
[null,{"$f":"SchemaDag","v":"2011-09-16"},{"$f":"DagligtTimmarTotalt","v":0}]
[null,{"$f":"SchemaDag","v":""},{"$f":"DagligtTimmarTotalt","v":""}]
[null,{"$f":"SchemaDag","v":""},{"$f":"DagligtTimmarTotalt","v":""}]
[null,{"$f":"SchemaDag","v":""},{"$f":"DagligtTimmarTotalt","v":""}]
[null,{"$f":"SchemaDag","v":""},{"$f":"DagligtTimmarTotalt","v":""}]
[null,{"$f":"SchemaDag","v":"2011-09-17"},{"$f":"DagligtTimmarTotalt","v":0}]
[null,{"$f":"SchemaDag","v":""},{"$f":"DagligtTimmarTotalt","v":""}]
[null,{"$f":"SchemaDag","v":""},{"$f":"DagligtTimmarTotalt","v":""}]
[null,{"$f":"SchemaDag","v":""},{"$f":"DagligtTimmarTotalt","v":""}]
[null,{"$f":"SchemaDag","v":""},{"$f":"DagligtTimmarTotalt","v":""}]
[null,{"$f":"SchemaDag","v":"2011-09-18"},{"$f":"DagligtTimmarTotalt","v":0}]
[null,{"$f":"SchemaDag","v":""},{"$f":"DagligtTimmarTotalt","v":""}]
[null,{"$f":"SchemaDag","v":""},{"$f":"DagligtTimmarTotalt","v":""}]
[null,{"$f":"SchemaDag","v":""},{"$f":"DagligtTimmarTotalt","v":""}]
[null,{"$f":"SchemaDag","v":""},{"$f":"DagligtTimmarTotalt","v":""}]
[null,{"$f":"SchemaDag","v":""},{"$f":"DagligtTimmarTotalt","v":""}]
[null,{"$f":"SchemaDag","v":""},{"$f":"DagligtTimmarTotalt","v":""}]
[null,{"$f":"SchemaDag","v":""},{"$f":"DagligtTimmarTotalt","v":""}]
[null,{"$f":"SchemaDag","v":""},{"$f":"DagligtTimmarTotalt","v":""}]
[null,{"$f":"SchemaDag","v":""},{"$f":"DagligtTimmarTotalt","v":""}]
[null,{"$f":"SchemaDag","v":""},{"$f":"DagligtTimmarTotalt","v":""}]
[null,{"$f":"SchemaDag","v":""},{"$f":"DagligtTimmarTotalt","v":""}]
[null,{"$f":"SchemaDag","v":""},{"$f":"DagligtTimmarTotalt","v":""}]
[null,{"$f":"SchemaDag","v":""},{"$f":"DagligtTimmarTotalt","v":""}]
[null,{"$f":"SchemaDag","v":""},{"$f":"DagligtTimmarTotalt","v":""}]
[null,{"$f":"SchemaDag","v":""},{"$f":"DagligtTimmarTotalt","v":""}]
[null,{"$f":"SchemaDag","v":""},{"$f":"DagligtTimmarTotalt","v":""}]
[null,{"$f":"SchemaDag","v":""},{"$f":"DagligtTimmarTotalt","v":""}]
[null,{"$f":"SchemaDag","v":""},{"$f":"DagligtTimmarTotalt","v":""}]
[null,{"$f":"SchemaDag","v":""},{"$f":"DagligtTimmarTotalt","v":""}]
[null,{"$f":"SchemaDag","v":""},{"$f":"DagligtTimmarTotalt","v":""}]
[null,{"$f":"SchemaDag","v":""},{"$f":"DagligtTimmarTotalt","v":""}]
[null,{"$f":"SchemaDag","v":""},{"$f":"DagligtTimmarTotalt","v":""}]
[null,{"$f":"SchemaDag","v":""},{"$f":"DagligtTimmarTotalt","v":""}]
[null,{"$f":"SchemaDag","v":""},{"$f":"DagligtTimmarTotalt","v":""}]
[null,{"$f":"SchemaDag","v":""},{"$f":"DagligtTimmarTotalt","v":""}]
[null,{"$f":"SchemaDag","v":""},{"$f":"DagligtTimmarTotalt","v":""}]
[null,{"$f":"SchemaDag","v":""},{"$f":"DagligtTimmarTotalt","v":""}]
[null,{"$f":"SchemaDag","v":""},{"$f":"DagligtTimmarTotalt","v":""}]
[null,{"$f":"SchemaDag","v":""},{"$f":"DagligtTimmarTotalt","v":""}]
[null,{"$f":"SchemaDag","v":""},{"$f":"DagligtTimmarTotalt","v":""}]
[null,{"$f":"SchemaDag","v":""},{"$f":"DagligtTimmarTotalt","v":""}]
[null,{"$f":"SchemaDag","v":""},{"$f":"DagligtTimmarTotalt","v":""}]
[null,{"$f":"SchemaDag","v":""},{"$f":"DagligtTimmarTotalt","v":""}]
[null,{"$f":"SchemaDag","v":""},{"$f":"DagligtTimmarTotalt","v":""}]
[null,{"$f":"SchemaDag","v":""},{"$f":"DagligtTimmarTotalt","v":""}]
[null,{"$f":"SchemaDag","v":""},{"$f":"DagligtTimmarTotalt","v":""}]
[null,{"$f":"SchemaDag","v":""},{"$f":"DagligtTimmarTotalt","v":""}]
[null,{"$f":"SchemaDag","v":""},{"$f":"DagligtTimmarTotalt","v":""}]
[null,{"$f":"SchemaDag","v":""},{"$f":"DagligtTimmarTotalt","v":""}]
[null,{"$f":"SchemaDag","v":""},{"$f":"DagligtTimmarTotalt","v":""}]
[null,{"$f":"SchemaDag","v":""},{"$f":"DagligtTimmarTotalt","v":""}]
[null,{"$f":"SchemaDag","v":""},{"$f":"DagligtTimmarTotalt","v":""}]
[null,{"$f":"SchemaDag","v":""},{"$f":"DagligtTimmarTotalt","v":""}]
[null,{"$f":"SchemaDag","v":""},{"$f":"DagligtTimmarTotalt","v":""}]
[null,{"$f":"SchemaDag","v":""},{"$f":"DagligtTimmarTotalt","v":""}]
[null,{"$f":"SchemaDag","v":""},{"$f":"DagligtTimmarTotalt","v":""}]
[null,{"$f":"SchemaDag","v":""},{"$f":"DagligtTimmarTotalt","v":""}]
[null,{"$f":"SchemaDag","v":""},{"$f":"DagligtTimmarTotalt","v":""}]
[null,{"$f":"SchemaDag","v":""},{"$f":"DagligtTimmarTotalt","v":""}]
[null,{"$f":"SchemaDag","v":""},{"$f":"DagligtTimmarTotalt","v":""}]
[null,{"$f":"SchemaDag","v":""},{"$f":"DagligtTimmarTotalt","v":""}]
[null,{"$f":"SchemaDag","v":""},{"$f":"DagligtTimmarTotalt","v":""}]
[null,{"$f":"SchemaDag","v":""},{"$f":"DagligtTimmarTotalt","v":""}]
[null,{"$f":"SchemaDag","v":""},{"$f":"DagligtTimmarTotalt","v":""}]
[null,{"$f":"SchemaDag","v":""},{"$f":"DagligtTimmarTotalt","v":""}]
[null,{"$f":"SchemaDag","v":""},{"$f":"DagligtTimmarTotalt","v":""}]
[null,{"$f":"SchemaDag","v":""},{"$f":"DagligtTimmarTotalt","v":""}]
[null,{"$f":"SchemaDag","v":""},{"$f":"DagligtTimmarTotalt","v":""}]
[null,{"$f":"SchemaDag","v":""},{"$f":"DagligtTimmarTotalt","v":""}]
[null,{"$f":"SchemaDag","v":""},{"$f":"DagligtTimmarTotalt","v":""}]
[null,{"$f":"SchemaDag","v":""},{"$f":"DagligtTimmarTotalt","v":""}]
[null,{"$f":"SchemaDag","v":""},{"$f":"DagligtTimmarTotalt","v":""}]
[null,{"$f":"SchemaDag","v":""},{"$f":"DagligtTimmarTotalt","v":""}]
[null,{"$f":"SchemaDag","v":""},{"$f":"DagligtTimmarTotalt","v":""}]
[null,{"$f":"SchemaDag","v":""},{"$f":"DagligtTimmarTotalt","v":""}]
[null,{"$f":"SchemaDag","v":""},{"$f":"DagligtTimmarTotalt","v":""}]